lending/lending_fUSD_20240124
["ID","MTS","AMOUNT","RATE_DAILY","PERIOD"]
[312640524,1706122352711,-500.0,0.00050958,31]
[312640525,1706122352721,-500.0,0.00050958,31]
[312640526,1706122352731,-526.93,0.00050958,31]
[312640527,1706122352740,-669.92,0.00050958,31]
[312640528,1706122352750,-500.0,0.00050958,31]
[312640529,1706122352760,-500.0,0.00050958,31]
[312640530,1706122352769,-681.96,0.00050958,31]
[312640531,1706122352779,-500.0,0.00050958,31]
[312640532,1706122352789,-1093.09,0.00050958,31]
[312640533,1706122352798,-505.89,0.00050958,31]
[312640534,1706122352808,-504.26,0.00050958,31]
[312640535,1706122352818,-576.3,0.00050958,31]
[312640536,1706122352828,-683.41,0.00050958,31]
[312640537,1706122352838,-500.0,0.00050958,31]
[312640538,1706122352847,-861.51,0.00050958,31]
[312640539,1706122352858,-531.92,0.00050958,31]
[312640540,1706122352868,-500.0,0.00050958,31]
[312640541,1706122352877,-1129.85,0.00050958,2]
[312640542,1706122352887,-500.0,0.00050958,31]
[312640543,1706122352897,-500.0,0.00050958,31]
[312640544,1706122352906,-523.21,0.00050958,31]
[312640545,1706122352916,-554.22,0.00050958,31]
[312640546,1706122352926,-500.0,0.00050958,31]
[312640547,1706122352936,-501.22,0.00050958,31]
[312640548,1706122352946,-538.61,0.00050958,31]
[312640549,1706122352955,-500.0,0.00050958,31]
[312640550,1706122352965,-748.72,0.00050958,31]
[312640551,1706122352975,-598.83,0.00050958,31]
[312640552,1706122352985,-909.89,0.00050958,14]
[312640553,1706122352995,-533.05603374,0.00050958,31]
[312640554,1706122353005,-960.56,0.00050958,31]
[312640555,1706122353014,-500.0,0.00050958,31]
[312640556,1706122353024,-830.24,0.00050958,31]
[312640557,1706122353034,-609.84829602,0.00050958,31]
[312640558,1706122353044,-895.7,0.00050958,31]
[312640559,1706122353053,-500.0,0.00050958,31]
[312640560,1706122353063,-545.66,0.00050958,31]
[312640561,1706122353073,-1002.31,0.00050958,31]
[312640562,1706122353083,-500.0,0.00050958,31]
[312640563,1706122353092,-1055.98,0.00050958,31]
[312640564,1706122353103,-500.0,0.00050958,31]
[312640565,1706122353113,-675.47,0.00050958,31]
[312640566,1706122353122,-1008.99,0.00050958,31]
[312640567,1706122353132,-500.0,0.00050958,31]
[312640568,1706122353143,-500.0,0.00050958,31]
[312640569,1706122353152,-697.41,0.00050958,31]
[312640570,1706122353162,-737.45,0.00050958,31]
[312640571,1706122353171,-733.37,0.00050958,31]
[312640572,1706122353180,-500.0,0.00050958,31]
[312640573,1706122353190,-909.31,0.00050958,31]
[312640574,1706122353200,-500.0,0.00050958,31]
[312640575,1706122353210,-506.83,0.00050958,31]
[312640576,1706122353221,-874.13,0.00050958,31]
[312640577,1706122353230,-703.21,0.00050958,31]
[312640578,1706122353241,-500.0,0.00050958,31]
[312640579,1706122353251,-500.0,0.00050958,31]
[312640580,1706122353261,-968.85,0.00050958,31]
[312640581,1706122353272,-733.08,0.00050958,31]
[312640582,1706122353282,-500.0,0.00050958,31]
[312640583,1706122353293,-1263.86,0.00050958,31]
[312640584,1706122353305,-500.0,0.00050958,31]
[312640585,1706122353315,-570.38,0.00050958,31]
[312640586,1706122353325,-500.0,0.00050958,31]
[312640587,1706122353336,-506.74,0.00050958,31]
[312640588,1706122353345,-873.0,0.00050958,31]
[312640589,1706122353356,-500.0,0.00050958,31]
[312640590,1706122353366,-500.0,0.00050958,31]
[312640591,1706122353376,-500.0,0.00050958,31]
[312640592,1706122353387,-500.0,0.00050958,10]
[312640593,1706122353396,-1425.52,0.00050958,31]
[312640594,1706122353406,-500.0,0.00050958,31]
[312640595,1706122353416,-500.0,0.00050958,31]
[312640596,1706122353425,-500.0,0.00050958,31]
[312640597,1706122353436,-1000.0,0.00050958,7]
[312640598,1706122353446,-831.23,0.00050958,31]
[312640599,1706122353456,-642.97,0.00050958,31]
[312640600,1706122353466,-2093.79,0.00050958,31]
[312640601,1706122353476,-500.000001,0.00050958,31]
[312640602,1706122353487,-500.0,0.00050958,31]
[312640603,1706122353497,-500.0,0.00050958,31]
[312640604,1706122353507,-811.0,0.00050958,31]
[312640605,1706122353517,-500.0,0.00050958,31]
[312640606,1706122353528,-500.0,0.00050958,7]
[312640607,1706122353539,-612.69,0.00050958,31]
[312640608,1706122353549,-545.73,0.00050958,31]
[312640609,1706122353558,-574.43,0.00050958,31]
[312640610,1706122353569,-500.0,0.00050958,31]
[312640611,1706122353578,-514.67,0.00050958,31]
[312640612,1706122353589,-611.45268845,0.00050958,31]
[312640613,1706122353598,-712.58,0.00050958,31]
[312640614,1706122353610,-622.52,0.00050958,31]
[312640615,1706122353620,-955.43,0.00050958,31]
[312640616,1706122353910,-500.0,0.00050958,31]
[312640617,1706122353920,-500.0,0.00050958,31]
[312640618,1706122353930,-500.0,0.00050958,31]
[312640619,1706122353940,-745.16,0.00050958,31]
[312640620,1706122353950,-726.38,0.00050958,31]
[312640621,1706122353959,-798.08,0.00050958,31]
[312640622,1706122353969,-500.0,0.00050958,31]
[312640623,1706122353979,-626.62,0.00050958,31]
[312640624,1706122353989,-865.11,0.00050958,31]
[312640625,1706122353999,-500.0,0.00050958,31]
[312640626,1706122354009,-500.0,0.00050958,31]
[312640627,1706122354019,-705.93,0.00050958,31]
[312640628,1706122354029,-1862.33,0.00050958,31]
[312640629,1706122354040,-500.0,0.00050958,31]
[312640630,1706122354049,-500.0,0.00050958,31]
[312640631,1706122354059,-317.77946516,0.00050958,31]
[312640632,1706122354069,-510.67,0.00050958,31]
[312640633,1706122354078,-668.54,0.00050958,31]
[312640634,1706122354088,-500.0,0.00050958,31]
[312640635,1706122354098,-856.57,0.00050958,31]
[312640636,1706122354107,-500.0,0.00050958,31]
[312640637,1706122354117,-500.0,0.00050958,31]
[312640638,1706122354126,-278.83027731,0.00050958,31]
[312640639,1706122354135,-662.93,0.00050958,31]
[312640640,1706122354145,-500.0,0.00050958,31]
[312640641,1706122354155,-500.0,0.00050958,31]
[312640642,1706122354165,-664.98,0.00050958,31]
[312640643,1706122354174,-500.0,0.00050958,31]
[312640644,1706122354184,-553.0,0.00050958,31]
[312640645,1706122354194,-601.77,0.00050958,31]
[312640646,1706122354203,-500.0,0.00050958,31]
[312640647,1706122354214,-614.5,0.00050958,31]
[312640648,1706122354223,-526.72,0.00050958,31]
[312640649,1706122354232,-532.62585885,0.00050958,31]
[312640650,1706122354242,-500.0,0.00050958,31]
[312640651,1706122354251,-500.0,0.00050958,31]
[312640652,1706122354260,-620.25,0.00050958,31]
[312640653,1706122354269,-500.0,0.00050958,31]
[312640654,1706122354279,-812.44,0.00050958,31]
[312640655,1706122354288,-500.0,0.00050958,31]
[312640656,1706122354298,-500.0,0.00050958,31]
[312640657,1706122354312,-500.0,0.00050958,31]
[312640658,1706122354321,-794.73,0.00050958,31]
[312640659,1706122354330,-500.0,0.00050958,31]
[312640660,1706122354341,-645.52,0.00050958,31]
[312640661,1706122354351,-500.0,0.00050958,31]
[312640662,1706122354362,-666.76,0.00050958,31]
[312640663,1706122354372,-705.9,0.00050958,31]
[312640664,1706122354381,-1412.9,0.00050958,31]
[312640665,1706122354392,-764.01,0.00050958,31]
[312640666,1706122354401,-650.22,0.00050958,31]
[312640667,1706122354411,-500.0,0.00050958,31]
[312640668,1706122354421,-500.0,0.00050958,31]
[312640669,1706122354431,-743.33,0.00050958,31]
[312640670,1706122354441,-632.51,0.00050958,31]
[312640671,1706122354450,-1250.48,0.00050958,31]
[312640672,1706122354460,-500.0,0.00050958,31]
[312640673,1706122354470,-650.49,0.00050958,31]
[312640674,1706122354479,-500.0,0.00050958,31]
[312640675,1706122354488,-733.9,0.00050958,31]
[312640676,1706122354498,-150.20148907,0.00050958,31]
[312640677,1706122354507,-500.0,0.00050958,31]
[312640678,1706122354516,-669.48,0.00050958,31]
[312640679,1706122354526,-500.0,0.00050958,31]
[312640680,1706122354535,-500.0,0.00050958,31]
[312640681,1706122354545,-554.01409531,0.00050958,31]
[312640682,1706122354554,-1269.11,0.00050958,2]
[312640683,1706122354564,-744.02,0.00050958,31]
[312640684,1706122354574,-664.9,0.00050958,31]
[312640685,1706122354584,-533.98,0.00050958,31]
[312640686,1706122354594,-500.0,0.00050958,31]
[312640687,1706122354605,-807.92,0.00050958,31]
[312640688,1706122354615,-500.0,0.00050958,31]
[312640689,1706122354624,-500.0,0.00050958,31]
[312640690,1706122354634,-553.89,0.00050958,31]
[312640691,1706122354644,-500.0,0.00050958,31]
[312640692,1706122354655,-678.22,0.00050958,31]
[312640693,1706122354665,-868.79,0.00050958,31]
[312640694,1706122354674,-500.0,0.00050958,31]
[312640695,1706122354684,-980.31,0.00050958,31]
[312640696,1706122354694,-540.29,0.00050958,31]
[312640697,1706122354704,-606.53,0.00050958,31]
[312640698,1706122354713,-500.0,0.00050958,31]
[312640699,1706122354723,-500.0,0.00050958,31]
[312640700,1706122354733,-590.42,0.00050958,31]
[312640701,1706122354743,-500.0,0.00050958,31]
[312640702,1706122354752,-1598.07,0.00050958,31]
[312640703,1706122354762,-526.85,0.00050958,31]
[312640704,1706122354772,-500.0,0.00050958,31]
[312640705,1706122354781,-1012.55,0.00050958,31]
[312640706,1706122354790,-822.56,0.00050958,31]
[312640707,1706122354800,-500.0,0.00050958,31]
[312640708,1706122354810,-2206.82,0.00050958,7]
[312640709,1706122354819,-500.0,0.00050958,31]
[312640710,1706122354829,-650.91,0.00050958,31]
[312640711,1706122354839,-1000.0,0.00050958,7]
[312640712,1706122354849,-500.0,0.00050958,31]
[312640713,1706122354860,-731.16,0.00050958,31]
[312640714,1706122354870,-500.0,0.00050958,31]
[312640715,1706122354879,-500.0,0.00050958,31]
[312640716,1706122354889,-500.0,0.00050958,31]
[312640717,1706122354899,-552.33,0.00050958,31]
[312640718,1706122354908,-508.81,0.00050958,31]
[312640719,1706122354918,-413.35853612,0.00050958,31]
[312640720,1706122354928,-813.7,0.00050958,31]
[312640721,1706122354938,-379.60565111,0.00050958,31]
[312640722,1706122354949,-255.34011929,0.00050958,31]
[312640723,1706122354958,-733.58,0.00050958,31]
[312640724,1706122354968,-500.0,0.00050958,31]
[312640725,1706122354977,-509.4,0.00050958,31]
[312640726,1706122354988,-500.0,0.00050958,31]
[312640727,1706122354997,-500.0,0.00050958,31]
[312640728,1706122355007,-656.53,0.00050958,31]
[312640729,1706122355017,-748.28,0.00050958,31]
[312640730,1706122355026,-500.0,0.00050958,31]
[312640731,1706122355035,-500.0,0.00050958,31]
[312640732,1706122355045,-737.23,0.00050958,31]
[312640733,1706122355056,-500.0,0.00050958,31]
[312640734,1706122355066,-500.0,0.00050958,31]
[312640735,1706122355076,-651.3,0.00050958,31]
[312640736,1706122355086,-500.0,0.00050958,31]
[312640737,1706122355096,-1130.82,0.00050958,7]
[312640738,1706122355106,-743.9,0.00050958,31]
[312640739,1706122355116,-695.86,0.00050958,31]
[312640740,1706122355126,-500.0,0.00050958,31]
[312640741,1706122355136,-524.48,0.00050958,31]
[312640742,1706122355146,-500.0,0.00050958,31]
[312640743,1706122355157,-577.96,0.00050958,31]
[312640744,1706122355167,-500.0,0.00050958,31]
[312640745,1706122355177,-500.0,0.00050958,31]
[312640746,1706122355188,-500.0,0.00050958,31]
[312640747,1706122355198,-822.67,0.00050958,31]
[312640748,1706122355208,-500.0,0.00050958,31]
[312640749,1706122355218,-500.0,0.00050958,31]
[312640750,1706122355229,-500.0,0.00050958,31]
[312640751,1706122355239,-500.0,0.00050958,31]
[312640752,1706122355250,-539.38,0.00050958,31]
[312640753,1706122355261,-754.54,0.00050958,31]
[312640754,1706122355270,-748.39,0.00050958,31]
[312640755,1706122355280,-759.37,0.00050958,31]
[312640756,1706122355292,-596.17,0.00050958,31]
[312640757,1706122355303,-590.14,0.00050958,31]
[312640758,1706122355312,-500.0,0.00050958,31]
[312640759,1706122355323,-500.0,0.00050958,31]
[312640760,1706122355334,-574.37,0.00050958,31]
[312640761,1706122355344,-836.66,0.00050958,31]
[312640762,1706122355355,-834.27,0.00050958,31]
[312640763,1706122355365,-1000.0,0.00050958,30]
[312640764,1706122355376,-500.0,0.00050958,31]
[312640765,1706122355386,-500.0,0.00050958,31]
[312640766,1706122355396,-500.0,0.00050958,31]
[312640767,1706122355406,-465.3156657,0.00050958,31]
[312640768,1706122355416,-561.15,0.00050958,31]
[312640769,1706122355427,-571.13,0.00050958,31]
[312640770,1706122355437,-500.0,0.00050958,31]
[312640771,1706122355447,-722.96,0.00050958,31]
[312640772,1706122355457,-2163.99,0.00050958,31]
[312640773,1706122355468,-574.84,0.00050958,31]
[312640774,1706122355478,-500.0,0.00050958,31]
[312640775,1706122355488,-500.0,0.00050958,31]
[312640776,1706122355498,-500.0,0.00050958,31]
[312640777,1706122355507,-500.0,0.00050958,31]
[312640778,1706122355517,-624.88,0.00050958,31]
[312640779,1706122355527,-500.0,0.00050958,31]
[312640780,1706122355537,-1020.09,0.00050958,31]
[312640781,1706122355547,-683.14,0.00050958,31]
[312640782,1706122355556,-500.0,0.00050958,31]
[312640783,1706122355565,-1074.38,0.00050958,31]
[312640784,1706122355575,-500.0,0.00050958,31]
[312640785,1706122355584,-500.0,0.00050958,31]
[312640786,1706122355594,-500.0,0.00050958,31]
[312640787,1706122355603,-774.89,0.00050958,31]
[312640788,1706122355613,-500.0,0.00050958,31]
[312640789,1706122355623,-598.13,0.00050958,31]
[312640790,1706122355634,-822.96,0.00050958,31]
[312640791,1706122355643,-590.69,0.00050958,31]
[312640792,1706122355654,-1001.25,0.00050958,31]
[312640793,1706122355664,-739.58,0.00050958,31]
[312640794,1706122355675,-500.0,0.00050958,31]
[312640795,1706122355686,-557.33,0.00050958,31]
[312640796,1706122355696,-500.0,0.00050958,31]
[312640797,1706122355706,-500.0,0.00050958,31]
[312640798,1706122355716,-1123.3,0.00050958,31]
[312640799,1706122355726,-534.79737494,0.00050958,31]
[312640800,1706122355736,-559.97,0.00050958,31]
[312640801,1706122355746,-500.0,0.00050958,31]
[312640802,1706122355757,-545.51,0.00050958,31]
[312640803,1706122355767,-703.65,0.00050958,31]
[312640804,1706122355776,-500.0,0.00050958,31]
[312640805,1706122355786,-535.27,0.00050958,31]
[312640806,1706122355796,-500.0,0.00050958,31]
[312640807,1706122355806,-507.77,0.00050958,31]
[312640808,1706122355816,-500.0,0.00050958,31]
[312640809,1706122355826,-500.0,0.00050958,31]
[312640810,1706122355837,-500.0,0.00050958,31]
[312640811,1706122355848,-500.0,0.00050958,31]
[312640812,1706122355859,-540.51,0.00050958,31]
[312640813,1706122355870,-744.37,0.00050958,31]
[312640814,1706122355880,-500.0,0.00050958,31]
[312640815,1706122355890,-638.61,0.00050958,31]
[312640816,1706122355900,-500.0,0.00050958,31]
[312640817,1706122355910,-664.27,0.00050958,31]
[312640818,1706122355921,-623.83,0.00050958,31]
[312640819,1706122355930,-500.0,0.00050958,31]
[312640820,1706122355940,-1168.99,0.00050958,31]
[312640821,1706122355950,-1288.27,0.00050958,31]
[312640822,1706122355960,-500.0,0.00050958,31]
[312640823,1706122355970,-500.0,0.00050958,31]
[312640824,1706122355980,-500.0,0.00050958,31]
[312640825,1706122355990,-1216.74,0.00050958,31]
[312640826,1706122355999,-500.0,0.00050958,31]
[312640827,1706122356009,-1358.17,0.00050958,31]
[312640828,1706122356019,-789.81,0.00050958,31]
[312640829,1706122356029,-441.87232269,0.00050958,31]
[312640830,1706122356039,-500.0,0.00050958,31]
[312640831,1706122356049,-500.0,0.00050958,31]
[312640832,1706122356059,-500.0,0.00050958,31]
[312640833,1706122356069,-500.0,0.00050958,31]
[312640834,1706122356079,-534.57942574,0.00050958,31]
[312640835,1706122356089,-515.76,0.00050958,31]
[312640836,1706122356099,-500.0,0.00050958,31]
[312640837,1706122356112,-835.3,0.00050958,31]
[312640838,1706122356122,-500.0,0.00050958,31]
[312640839,1706122356131,-5442.29,0.00050958,31]
[312640840,1706122356140,-500.0,0.00050958,31]
[312640841,1706122356150,-500.0,0.00050958,31]
[312640842,1706122356159,-500.0,0.00050958,31]
[312640843,1706122356169,-609.87,0.00050958,31]
[312640844,1706122356179,-500.0,0.00050958,31]
[312640845,1706122356189,-1213.12,0.00050958,31]
[312640846,1706122356198,-500.0,0.00050958,31]
[312640847,1706122356208,-500.0,0.00050958,31]
[312640848,1706122356217,-500.0,0.00050958,31]
[312640849,1706122356227,-500.0,0.00050958,31]
[312640850,1706122356237,-766.55,0.00050958,31]
[312640851,1706122356247,-950.1,0.00050958,31]
[312640852,1706122356256,-891.54,0.00050958,31]
[312640853,1706122356265,-789.01,0.00050958,31]
[312640854,1706122356364,-571.48,0.00050958,31]
[312640855,1706122356374,-674.93,0.00050958,31]
[312640856,1706122356385,-500.0,0.00050958,31]
[312640857,1706122356395,-754.8,0.00050958,31]
[312640858,1706122356406,-500.0,0.00050958,31]
[312640859,1706122356415,-994.52,0.00050958,31]
[312640860,1706122356424,-619.7,0.00050958,31]
[312640861,1706122356433,-1265.56,0.00050958,31]
[312640862,1706122356443,-500.0,0.00050958,31]
[312640863,1706122356452,-553.3,0.00050958,31]
[312640864,1706122356462,-1070.96,0.00050958,31]
[312640865,1706122356471,-697.79,0.00050958,31]
[312640866,1706122356480,-500.0,0.00050958,31]
[312640867,1706122356489,-1137.93,0.00050958,31]
[312640868,1706122356499,-1012.33,0.00050958,31]
[312640869,1706122356508,-876.45,0.00050958,31]
[312640870,1706122356517,-715.02,0.00050958,31]
[312640871,1706122356526,-500.0,0.00050958,31]
[312640872,1706122356536,-500.0,0.00050958,7]
[312640873,1706122356546,-500.0,0.00050958,31]
[312640874,1706122356555,-833.81,0.00050958,31]
[312640875,1706122356565,-500.0,0.00050958,31]
[312640876,1706122356575,-1061.9,0.00050958,31]
[312640877,1706122356585,-1257.58,0.00050958,31]
[312640878,1706122356594,-190.20192253,0.00050958,31]
[312640879,1706122356603,-500.0,0.00050958,31]
[312640880,1706122356614,-500.0,0.00050958,31]
[312640881,1706122356623,-642.76,0.00050958,31]
[312640882,1706122356632,-980.87,0.00050958,31]
[312640883,1706122356641,-2365.7,0.00050958,31]
[312640884,1706122356650,-500.0,0.00050958,31]
[312640885,1706122356661,-550.34,0.00050958,31]
[312640886,1706122356671,-500.0,0.00050958,31]
[312640887,1706122356680,-9651.62,0.00050958,5]
[312640888,1706122356690,-1273.8,0.00050958,31]
[312640889,1706122356700,-516.0,0.00050958,31]
[312640890,1706122356710,-259.15,0.00050958,31]
[312640891,1706122356719,-500.0,0.00050958,31]
[312640892,1706122356729,-500.0,0.00050958,31]
[312640893,1706122356738,-848.97,0.00050958,31]
[312640894,1706122356748,-826.53,0.00050958,31]
[312640895,1706122356757,-500.0,0.00050958,31]
[312640896,1706122356767,-500.0,0.00050958,31]
[312640897,1706122356777,-500.0,0.00050958,31]
[312640898,1706122356786,-570.78,0.00050958,31]
[312640899,1706122356795,-750.28,0.00050958,31]
[312640900,1706122356804,-500.0,0.00050958,31]
[312640901,1706122356814,-647.3,0.00050958,31]
[312640902,1706122356824,-1277.6,0.00050958,31]
[312640903,1706122356833,-886.52,0.00050958,31]
[312640904,1706122356843,-500.0,0.00050958,31]
[312640905,1706122356852,-744.61,0.00050958,31]
[312640906,1706122356863,-6353.27,0.00050958,5]
[312640907,1706122356872,-688.18,0.00050958,31]
[312640908,1706122356882,-191.01506279,0.00050958,31]
[312640909,1706122356892,-500.0,0.00050958,31]
[312640910,1706122356901,-585.99,0.00050958,31]
[312640911,1706122356911,-500.0,0.00050958,31]
[312640912,1706122356921,-500.0,0.00050958,31]
[312640913,1706122356930,-500.0,0.00050958,31]
[312640914,1706122356939,-1311.12,0.00050958,31]
[312640915,1706122356948,-500.0,0.00050958,31]
[312640916,1706122356958,-500.0,0.00050958,31]
[312640917,1706122356967,-500.0,0.00050958,31]
[312640918,1706122356977,-635.69,0.00050958,31]
[312640919,1706122356986,-2747.11,0.00050958,31]
[312640920,1706122356996,-1064.36,0.00050958,31]
[312640921,1706122357005,-500.0,0.00050958,31]
[312640922,1706122357015,-988.82,0.00050958,31]
[312640923,1706122357036,-336.97,0.00050958,31]
[312640924,1706122357055,-500.0,0.00050958,31]
[312640925,1706122357076,-500.0,0.00050958,31]
[312640926,1706122357098,-500.0,0.00050958,31]
[312640927,1706122357119,-506.02,0.00050958,31]
[312640928,1706122357139,-500.0,0.00050958,31]
[312640929,1706122357161,-500.0,0.00050958,31]
[312640930,1706122357186,-4014.55,0.00050958,31]
[312640931,1706122357196,-996.79,0.00050958,31]
[312640932,1706122357205,-500.0,0.00050958,31]
[312640933,1706122357215,-879.67,0.00050958,31]
[312640934,1706122357224,-500.0,0.00050958,31]
[312640935,1706122357233,-556.81,0.00050958,31]
[312640936,1706122357242,-500.0,0.00050958,31]
[312640937,1706122357251,-500.0,0.00050958,31]
[312640938,1706122357261,-1740.65,0.00050958,31]
[312640939,1706122357270,-1603.09,0.00050958,31]
[312640940,1706122357280,-722.88,0.00050958,31]
[312640941,1706122357290,-891.73,0.00050958,31]
[312640942,1706122357299,-500.0,0.00050958,31]
[312640943,1706122357314,-1257.39,0.00050958,31]
[312640944,1706122357324,-703.85,0.00050958,31]
[312640945,1706122357334,-500.0,0.00050958,31]
[312640946,1706122357345,-500.0,0.00050958,31]
[312640947,1706122357354,-534.53,0.00050958,31]
[312640948,1706122357364,-4733.77,0.00050958,31]
[312640949,1706122357373,-3077.84,0.00050958,31]
[312640950,1706122357384,-2216.62,0.00050958,31]
[312640951,1706122357394,-500.0,0.00050958,31]
[312640952,1706122357403,-1335.18,0.00050958,31]
[312640953,1706122357413,-654.54,0.00050958,31]
[312640954,1706122357422,-500.0,0.00050958,31]
[312640955,1706122357432,-820.02,0.00050958,31]
[312640956,1706122357442,-603.22,0.00050958,31]
[312640957,1706122357452,-4058.85,0.00050958,31]
[312640958,1706122357461,-870.48,0.00050958,31]
[312640959,1706122357470,-500.0,0.00050958,30]
[312640960,1706122357479,-1196.3,0.00050958,31]
[312640961,1706122357489,-691.03,0.00050958,31]
[312640962,1706122357498,-500.0,0.00050958,31]
[312640963,1706122357507,-506.34,0.00050958,31]
[312640964,1706122357516,-500.0,0.00050958,31]
[312640965,1706122357526,-500.0,0.00050958,31]
[312640966,1706122357535,-1595.23,0.00050958,31]
[312640967,1706122357545,-9475.21,0.00050958,31]
[312640968,1706122357554,-2256.81,0.00050958,31]
[312640969,1706122357564,-500.0,0.00050958,31]
[312640970,1706122357573,-500.0,0.00050958,31]
[312640971,1706122357583,-500.0,0.00050958,31]
[312640972,1706122357592,-500.0,0.00050958,31]
[312640973,1706122357602,-504.15,0.00050958,31]
[312640974,1706122357612,-949.97,0.00050958,31]
[312640975,1706122357621,-2007.79,0.00050958,31]
[312640976,1706122357629,-760.02,0.00050958,31]
[312640977,1706122357638,-1753.67,0.00050958,2]
[312640978,1706122357647,-960.34,0.00050958,31]
[312640979,1706122357656,-895.93,0.00050958,31]
[312640980,1706122357665,-500.0,0.00050958,31]
[312640981,1706122357674,-500.0,0.00050958,31]
[312640982,1706122357684,-500.0,0.00050958,31]
[312640983,1706122357693,-500.0,0.00050958,31]
[312640984,1706122357703,-9793.91,0.00050958,31]
[312640985,1706122357713,-630.07,0.00050958,31]
[312640986,1706122357723,-500.0,0.00050958,31]
[312640987,1706122357732,-1085.19,0.00050958,31]
[312640988,1706122357742,-733.81,0.00050958,31]
[312640989,1706122357750,-500.0,0.00050958,31]
[312640990,1706122357759,-500.0,0.00050958,31]
[312640991,1706122357769,-822.62,0.00050958,31]
[312640992,1706122357778,-786.38,0.00050958,31]
[312640993,1706122357788,-5724.55,0.00050958,31]
[312640994,1706122357797,-583.81,0.00050958,31]
[312640995,1706122357806,-1209.52,0.00050958,31]
[312640996,1706122357816,-500.0,0.00050958,31]
[312640997,1706122357826,-500.0,0.00050958,31]
[312640998,1706122357835,-921.04,0.00050958,31]
[312640999,1706122357845,-1294.87,0.00050958,31]
[312641000,1706122357854,-593.18,0.00050958,31]
[312641001,1706122357864,-2304.75,0.00050958,31]
[312641002,1706122357874,-500.0,0.00050958,31]
[312641003,1706122357883,-1239.0,0.00050958,31]
[312641004,1706122357892,-604.69,0.00050958,31]
[312641005,1706122357901,-650.95,0.00050958,31]
[312641006,1706122357910,-1539.95,0.00050958,31]
[312641007,1706122357920,-8834.98,0.00050958,31]
[312641008,1706122357929,-500.0,0.00050958,31]
[312641009,1706122357939,-500.0,0.00050958,31]
[312641010,1706122357948,-547.48,0.00050958,31]
[312641011,1706122357957,-500.0,0.00050958,31]
[312641012,1706122357966,-1282.38,0.00050958,31]
[312641013,1706122357975,-2142.95,0.00050958,7]
[312641014,1706122357984,-966.05,0.00050958,31]
[312641015,1706122357993,-747.91,0.00050958,31]
[312641016,1706122358002,-1871.41,0.00050958,31]
[312641017,1706122358011,-912.87,0.00050958,31]
[312641018,1706122358021,-1116.62,0.00050958,31]
[312641019,1706122358030,-833.57,0.00050958,31]
[312641020,1706122358039,-500.0,0.00050958,31]
[312641021,1706122358048,-1268.63,0.00050958,31]
[312641022,1706122358057,-646.44,0.00050958,31]
[312641023,1706122358066,-657.31,0.00050958,31]